fUST/lending_fUST_20250513
["ID","MTS","AMOUNT","RATE_DAILY","PERIOD"]
[360878129,1747095052293,-498.52,0.00019178,2]
[360878130,1747095052303,-882.26,0.00019178,2]
[360878131,1747095052312,-1750.235323,0.00019178,2]
[360878132,1747095052322,-665.77,0.00019178,2]
[360878133,1747095052332,-273.11143216,0.00019178,2]
[360878134,1747095052341,-400.0,0.00019178,2]
[360878135,1747095052351,-1275.38,0.00019178,2]
[360878136,1747095052363,-400.0,0.00019178,2]
[360878137,1747095052372,-400.0,0.00019178,2]
[360878138,1747095052382,-663.19,0.00019178,2]
[360878139,1747095052391,-1750.235323,0.00019178,2]
[360878140,1747095052400,-400.0,0.00019178,2]
[360878141,1747095052410,-1753.78,0.00019178,2]
[360878142,1747095052419,-498.65,0.00019178,2]
[360878143,1747095052429,-4188.57,0.00019178,2]
[360878144,1747095052438,-400.0,0.00019178,2]
[360878145,1747095052448,-400.0,0.00019178,2]
[360878146,1747095052458,-400.0,0.00019178,2]
[360878147,1747095052467,-452.89,0.00019178,2]
[360878148,1747095052476,-400.0,0.00019178,2]
[360878149,1747095052486,-578.81,0.00019178,2]
[360878150,1747095052496,-3328.62,0.00019178,2]
[360878151,1747095052505,-400.0,0.00019178,2]
[360878152,1747095052515,-400.0,0.00019178,2]
[360878153,1747095052524,-400.0,0.00019178,2]
[360878154,1747095052532,-1420.97,0.00019178,2]
[360878155,1747095052542,-7792.89,0.00019178,2]
[360878156,1747095052551,-400.0,0.00019178,2]
[360878157,1747095052561,-400.0,0.00019178,2]
[360878158,1747095052570,-595.54,0.00019178,2]
[360878159,1747095052579,-400.0,0.00019178,2]
[360878160,1747095052589,-400.0,0.00019178,2]
[360878161,1747095052599,-400.0,0.00019178,2]
[360878162,1747095052611,-655.56,0.00019178,2]
[360878163,1747095052620,-8150.73,0.00019178,2]
[360878164,1747095052630,-422.67,0.00019178,2]
[360878165,1747095052639,-2937.13,0.00019178,2]
[360878166,1747095052649,-400.0,0.00019178,2]
[360878167,1747095052658,-717.14,0.00019178,2]
[360878168,1747095052667,-400.0,0.00019178,2]
[360878169,1747095052676,-400.0,0.00019178,2]
[360878170,1747095052686,-400.0,0.00019178,2]
[360878171,1747095052695,-400.0,0.00019178,2]
[360878172,1747095052704,-750.52,0.00019178,2]
[360878173,1747095052713,-400.0,0.00019178,2]
[360878174,1747095052723,-2464.69,0.00019178,2]
[360878175,1747095052732,-400.0,0.00019178,2]
[360878176,1747095052741,-400.0,0.00019178,2]
[360878177,1747095052751,-517.97,0.00019178,2]
[360878178,1747095052760,-882.71,0.00019178,2]
[360878179,1747095052769,-400.0,0.00019178,2]
[360878180,1747095052778,-400.0,0.00019178,2]
[360878181,1747095052788,-1237.13,0.00019178,2]
[360878182,1747095052797,-1042.01,0.00019178,2]
[360878183,1747095052806,-400.0,0.00019178,2]
[360878184,1747095052816,-400.0,0.00019178,2]
[360878185,1747095052825,-2430.44,0.00019178,2]
[360878186,1747095052835,-16214.37,0.00019178,2]
[360878187,1747095052844,-400.0,0.00019178,2]
[360878188,1747095052854,-400.0,0.00019178,2]
[360878189,1747095052864,-400.0,0.00019178,2]
[360878190,1747095052873,-400.0,0.00019178,2]
[360878191,1747095052883,-7382.35,0.00019178,2]
[360878192,1747095052893,-400.0,0.00019178,2]
[360878193,1747095052902,-3450.92,0.00019178,2]
[360878194,1747095052911,-832.16,0.00019178,2]
[360878195,1747095052920,-413.06,0.00019178,2]
[360878196,1747095052930,-3193.57,0.00019178,2]
[360878197,1747095052939,-442.56,0.00019178,2]
[360878198,1747095052948,-151.0,0.00019178,2]
[360878199,1747095052957,-151.0,0.00019178,2]
[360878200,1747095052967,-400.0,0.00019178,2]
[360878201,1747095052976,-400.0,0.00019178,2]
[360878202,1747095052986,-701.06,0.00019178,2]
[360878203,1747095053000,-400.0,0.00019178,2]
[360878204,1747095053010,-400.0,0.00019178,2]
[360878205,1747095053020,-467.17,0.00019178,2]
[360878206,1747095053029,-1144.6,0.00019178,2]
[360878207,1747095053039,-151.0,0.00019178,2]
[360878208,1747095053049,-788.68,0.00019178,2]
[360878209,1747095053059,-151.0,0.00019178,2]
[360878210,1747095053069,-457.16,0.00019178,2]
[360878211,1747095053079,-2014.14,0.00019178,2]
[360878212,1747095053088,-1667.6,0.00019178,2]
[360878213,1747095053098,-400.0,0.00019178,2]
[360878214,1747095053107,-2236.18,0.00019178,2]
[360878215,1747095053116,-588.67,0.00019178,2]
[360878216,1747095053126,-1012.27,0.00019178,2]
[360878217,1747095053136,-400.0,0.00019178,2]
[360878218,1747095053146,-494.94,0.00019178,2]
[360878219,1747095053156,-25888.23,0.00019178,2]
[360878220,1747095053169,-578.42,0.00019178,2]
[360878221,1747095053179,-400.0,0.00019178,2]
[360878222,1747095053189,-400.0,0.00019178,2]
[360878223,1747095053200,-3898.25,0.00019178,2]
[360878224,1747095053210,-605.52,0.00019178,2]
[360878225,1747095053220,-400.0,0.00019178,2]
[360878226,1747095053230,-815.55,0.00019178,2]
[360878227,1747095053241,-400.0,0.00019178,2]
[360878228,1747095053252,-151.0,0.00019178,2]
[360878229,1747095053262,-580.88,0.00019178,2]
[360878230,1747095053272,-1838.21,0.00019178,2]
[360878231,1747095053283,-400.0,0.00019178,2]
[360878232,1747095053292,-400.0,0.00019178,2]
[360878233,1747095053302,-1704.39,0.00019178,2]
[360878234,1747095053312,-400.0,0.00019178,2]
[360878235,1747095053322,-543.29,0.00019178,2]
[360878236,1747095053332,-400.0,0.00019178,2]
[360878237,1747095053342,-848.05,0.00019178,2]
[360878238,1747095053352,-400.0,0.00019178,2]
[360878239,1747095053364,-151.0,0.00019178,2]
[360878240,1747095053374,-400.0,0.00019178,2]
[360878241,1747095053384,-400.0,0.00019178,2]
[360878242,1747095053393,-5198.34,0.00019178,2]
[360878243,1747095053403,-2396.75,0.00019178,2]
[360878244,1747095053413,-264.71855108,0.00019178,2]
[360878245,1747095053423,-400.0,0.00019178,2]
[360878246,1747095053432,-400.0,0.00019178,2]
[360878247,1747095053442,-151.0,0.00019178,2]
[360878248,1747095053452,-400.0,0.00019178,2]
[360878249,1747095053462,-151.0,0.00019178,2]
[360878250,1747095053472,-888.61,0.00019178,2]
[360878251,1747095053482,-151.0,0.00019178,2]
[360878252,1747095053491,-841.39,0.00019178,2]
[360878253,1747095053501,-1193.47,0.00019178,2]
[360878254,1747095053511,-753.43,0.00019178,2]
[360878255,1747095053521,-151.0,0.00019178,2]
[360878256,1747095053532,-400.0,0.00019178,2]
[360878257,1747095053543,-151.0,0.00019178,2]
[360878258,1747095053554,-400.0,0.00019178,2]
[360878259,1747095053565,-151.0,0.00019178,2]
[360878260,1747095053576,-151.0,0.00019178,2]
[360878261,1747095053587,-400.0,0.00019178,2]
[360878262,1747095053598,-1640.49,0.00019178,2]
[360878263,1747095053610,-400.0,0.00019178,2]
[360878264,1747095053620,-151.0,0.00019178,2]
[360878265,1747095053630,-400.0,0.00019178,2]
[360878266,1747095053640,-400.0,0.00019178,2]
[360878267,1747095053651,-151.0,0.00019178,2]
[360878268,1747095053661,-400.0,0.00019178,2]
[360878269,1747095053671,-425.78,0.00019178,2]
[360878270,1747095053681,-400.0,0.00019178,2]
[360878271,1747095053692,-400.0,0.00019178,2]
[360878272,1747095053702,-400.0,0.00019178,2]
[360878273,1747095053712,-1312.12,0.00019178,2]
[360878274,1747095053722,-820.47,0.00019178,2]
[360878275,1747095053979,-400.0,0.00019178,2]
[360878276,1747095053989,-730.03,0.00019178,2]
[360878277,1747095054000,-400.0,0.00019178,2]
[360878278,1747095054009,-471.55,0.00019178,2]
[360878279,1747095054018,-400.0,0.00019178,2]
[360878280,1747095054027,-400.0,0.00019178,2]
[360878281,1747095054037,-924.56,0.00019178,2]
[360878282,1747095054046,-400.0,0.00019178,2]
[360878283,1747095054056,-400.0,0.00019178,2]
[360878284,1747095054065,-400.0,0.00019178,2]
[360878285,1747095054074,-400.0,0.00019178,2]
[360878286,1747095054084,-446.25,0.00019178,2]
[360878287,1747095054093,-1258.78,0.00019178,2]
[360878288,1747095054102,-400.0,0.00019178,2]
[360878289,1747095054112,-151.0,0.00019178,2]
[360878290,1747095054121,-151.0,0.00019178,2]
[360878291,1747095054131,-1904.82,0.00019178,2]
[360878292,1747095054140,-5966.01,0.00019178,2]
[360878293,1747095054149,-400.0,0.00019178,2]
[360878294,1747095054159,-15657.12,0.00019178,2]
[360878295,1747095054173,-1518.02,0.00019178,2]
[360878296,1747095054182,-465.69,0.00019178,2]
[360878297,1747095054191,-151.0,0.00019178,2]
[360878298,1747095054201,-151.0,0.00019178,2]
[360878299,1747095054211,-400.0,0.00019178,2]
[360878300,1747095054220,-400.0,0.00019178,2]
[360878301,1747095054229,-794.47,0.00019178,2]
[360878302,1747095054240,-522.23492082,0.00019178,2]
[360878303,1747095054250,-1555.94,0.00019178,2]
[360878304,1747095054261,-400.0,0.00019178,2]
[360878305,1747095054270,-400.0,0.00019178,2]
[360878306,1747095054280,-468.84,0.00019178,2]
[360878307,1747095054290,-1381.77,0.00019178,2]
[360878308,1747095054299,-400.0,0.00019178,2]
[360878309,1747095054309,-3297.06,0.00019178,2]
[360878310,1747095054319,-153.0,0.00019178,2]
[360878311,1747095054328,-153.0,0.00019178,2]
[360878312,1747095054337,-153.0,0.00019178,2]
[360878313,1747095054346,-153.0,0.00019178,2]
[360878314,1747095054355,-153.0,0.00019178,2]
[360878315,1747095054367,-153.0,0.00019178,2]
[360878316,1747095054376,-153.0,0.00019178,2]
[360878317,1747095054386,-153.0,0.00019178,2]
[360878318,1747095054395,-153.0,0.00019178,2]
[360878319,1747095054405,-153.0,0.00019178,2]
[360878320,1747095054414,-153.0,0.00019178,2]
[360878321,1747095054423,-153.0,0.00019178,2]
[360878322,1747095054433,-153.0,0.00019178,2]
[360878323,1747095054442,-153.0,0.00019178,2]
[360878324,1747095054452,-153.0,0.00019178,2]
[360878325,1747095054461,-153.0,0.00019178,2]
[360878326,1747095054471,-153.0,0.00019178,2]
[360878327,1747095054481,-153.0,0.00019178,2]
[360878328,1747095054490,-153.0,0.00019178,2]
[360878329,1747095054501,-153.0,0.00019178,2]
[360878330,1747095054511,-153.0,0.00019178,2]
[360878331,1747095054521,-153.0,0.00019178,2]
[360878332,1747095054530,-153.0,0.00019178,2]
[360878333,1747095054540,-153.0,0.00019178,2]
[360878334,1747095054550,-153.0,0.00019178,2]
[360878335,1747095054559,-153.0,0.00019178,2]
[360878336,1747095054568,-153.0,0.00019178,2]
[360878337,1747095054578,-890.739347,0.00019178,2]
[360878338,1747095054588,-151.0,0.00019205,2]
[360878339,1747095054597,-267.354636,0.00019205,2]
[360878340,1747095054606,-314.24507772,0.00019205,7]
[360878341,1747095054617,-12623.54026388,0.00019205,7]
[360878342,1747095054627,-160.0,0.00019205,7]
[360878343,1747095054636,-212.17074216,0.00019205,7]
[360878344,1747095054646,-997.78101552,0.00019205,7]
[360878345,1747095054655,-163.493357,0.00019233,2]
[360878346,1747095054666,-163.493357,0.00019233,2]
[360878347,1747095054676,-151.0,0.00019233,2]
[360878348,1747095054686,-314.24507772,0.00019288,30]
[360878349,1747095054695,-12623.54026388,0.00019288,30]
[360878350,1747095054705,-212.17074216,0.00019288,30]
[360878351,1747095054715,-997.78101552,0.00019288,30]
[360878352,1747095054725,-151.0,0.00019288,2]
[360878353,1747095054735,-151.0,0.00019288,2]
[360878354,1747095054744,-151.0,0.00019288,2]
[360878355,1747095054754,-151.0,0.00019288,2]
[360878356,1747095054764,-151.0,0.00019329,2]
[360878357,1747095054773,-2293.02898092,0.00019352,2]
[360878358,1747095054782,-449.4413445,0.00019354,2]
[360878359,1747095054792,-514.595,0.00019397,7]
[360878360,1747095054801,-1058.0,0.000194,2]
[360878361,1747095054811,-1064.82157127,0.00019417,2]
[360878362,1747095054820,-160.0,0.00019451,2]
[360878363,1747095054829,-23405.35689018,0.00019452,2]
[360878364,1747095054838,-979.70095851,0.00019452,3]
[360878365,1747095054848,-151.0,0.00019452,2]
[360878366,1747095054857,-151.0,0.00019452,2]
[360878367,1747095054867,-151.0,0.00019452,2]
[360878368,1747095054876,-194.153509,0.00019452,2]
[360878369,1747095054886,-639.68722,0.00019452,2]
[360878370,1747095054895,-639.68722,0.00019452,2]
[360878371,1747095054904,-639.68722,0.00019452,2]
[360878372,1747095054915,-639.68722,0.00019452,2]
[360878373,1747095054924,-639.68722,0.00019452,2]
[360878374,1747095054933,-639.68722,0.00019452,2]
[360878375,1747095054942,-639.68722,0.00019452,2]
[360878376,1747095054951,-639.68722,0.00019452,2]
[360878377,1747095054960,-639.68722,0.00019452,2]
[360878378,1747095054969,-639.68723,0.00019452,2]
[360878379,1747095054979,-151.0,0.00019452,2]
[360878380,1747095054988,-151.0,0.00019452,2]
[360878381,1747095054997,-151.0,0.00019452,2]
[360878382,1747095055006,-151.0,0.00019452,2]
[360878383,1747095055016,-167.82889,0.00019452,2]
[360878384,1747095055025,-163.493357,0.00019452,2]
[360878385,1747095055034,-163.493357,0.00019452,2]
[360878386,1747095055043,-163.493357,0.00019452,2]
[360878387,1747095055052,-400.0,0.00019452,2]
[360878388,1747095055061,-163.493357,0.00019452,2]
[360878389,1747095055071,-163.493357,0.00019452,2]
[360878390,1747095055080,-163.493357,0.00019452,2]
[360878391,1747095055089,-163.493357,0.00019452,2]
[360878392,1747095055098,-163.493357,0.00019452,2]
[360878393,1747095055109,-163.493357,0.00019452,2]
[360878394,1747095055119,-163.493355,0.00019452,2]
[360878395,1747095055129,-503.96828074,0.00019452,2]
[360878396,1747095055138,-400.0,0.00019452,2]
[360878397,1747095055147,-411.81399734,0.00019452,2]
[360878398,1747095055156,-151.0,0.00019452,2]
[360878399,1747095055168,-151.0,0.00019452,2]
[360878400,1747095055177,-151.0,0.00019452,2]
[360878401,1747095055187,-151.0,0.00019452,2]
[360878402,1747095055196,-151.0,0.00019452,2]
[360878403,1747095055205,-400.0,0.00019452,2]
[360878404,1747095055214,-400.0,0.00019452,2]
[360878405,1747095055223,-1000.0,0.00019452,2]
[360878406,1747095055232,-151.0,0.00019452,2]
[360878407,1747095055242,-151.0,0.00019452,2]
[360878408,1747095055251,-400.0,0.00019452,2]
[360878409,1747095055261,-151.0,0.00019452,2]
[360878410,1747095055271,-151.0,0.00019452,2]
[360878411,1747095055280,-400.0,0.00019452,2]
[360878412,1747095055289,-492.51931416,0.00019452,2]
[360878413,1747095055298,-521.230978,0.00019452,2]
[360878414,1747095055307,-521.230978,0.00019452,2]
[360878415,1747095055316,-400.0,0.00019452,2]
[360878416,1747095055325,-400.0,0.00019452,2]
[360878417,1747095055335,-400.0,0.00019452,2]
[360878418,1747095055344,-201.466827,0.00019452,2]
[360878419,1747095055353,-400.0,0.00019452,2]
[360878420,1747095055363,-201.466827,0.00019452,2]
[360878421,1747095055372,-201.466827,0.00019452,2]
[360878422,1747095055382,-201.466827,0.00019452,2]
[360878423,1747095055391,-400.0,0.00019452,2]
[360878424,1747095055401,-151.0,0.00019452,2]
[360878425,1747095055410,-151.0,0.00019452,2]
[360878426,1747095055419,-400.0,0.00019452,2]
[360878427,1747095055428,-151.0,0.00019452,2]
[360878428,1747095055438,-400.0,0.00019452,2]
[360878429,1747095055447,-151.0,0.00019452,2]
[360878430,1747095055457,-400.0,0.00019452,2]
[360878431,1747095055466,-400.0,0.00019452,2]
[360878432,1747095055476,-400.0,0.00019452,2]
[360878433,1747095055487,-151.0,0.00019452,2]
[360878434,1747095055496,-151.0,0.00019452,2]
[360878435,1747095055505,-400.0,0.00019452,2]
[360878436,1747095055514,-400.0,0.00019452,2]
[360878437,1747095055524,-333.200547,0.00019452,2]
[360878438,1747095055534,-333.200547,0.00019452,2]
[360878439,1747095055543,-400.0,0.00019452,2]
[360878440,1747095055553,-400.0,0.00019452,2]
[360878441,1747095055562,-400.0,0.00019452,2]
[360878442,1747095055571,-400.0,0.00019452,2]
[360878443,1747095055581,-400.0,0.00019452,2]
[360878444,1747095055590,-400.0,0.00019452,2]
[360878445,1747095055600,-400.0,0.00019452,2]
[360878446,1747095055610,-400.0,0.00019452,2]
[360878447,1747095055620,-400.0,0.00019452,2]
[360878448,1747095055629,-520.58928426,0.00019452,2]
[360878449,1747095055638,-400.0,0.00019452,2]
[360878450,1747095055648,-491.53,0.00019452,2]
[360878451,1747095055657,-400.0,0.00019452,2]
[360878452,1747095055667,-870.78,0.00019452,2]
[360878453,1747095055677,-453.464346,0.00019452,2]
[360878454,1747095055686,-453.464346,0.00019452,2]
[360878455,1747095055696,-453.464346,0.00019452,2]
[360878456,1747095055705,-453.464346,0.00019452,2]
[360878457,1747095055714,-457.15,0.00019452,2]
[360878458,1747095055724,-453.464346,0.00019452,2]
[360878459,1747095055734,-453.464346,0.00019452,2]
[360878460,1747095055743,-230.04316501,0.00019452,2]
[360878461,1747095055753,-811.27,0.00019452,2]
[360878462,1747095055762,-400.0,0.00019452,2]
[360878463,1747095055771,-400.0,0.00019452,2]
[360878464,1747095055780,-400.0,0.00019452,2]
[360878465,1747095055789,-690.51,0.00019452,2]
[360878466,1747095055798,-400.0,0.00019452,2]
[360878467,1747095055808,-400.0,0.00019452,2]
[360878468,1747095055817,-400.0,0.00019452,2]
[360878469,1747095055827,-400.0,0.00019452,2]
[360878470,1747095055836,-400.0,0.00019452,2]
[360878471,1747095055845,-158.805067,0.00019452,2]
[360878472,1747095055854,-1085.93,0.00019452,2]
[360878473,1747095055866,-400.0,0.00019452,2]
[360878474,1747095055876,-151.0,0.00019452,2]
[360878475,1747095055885,-151.0,0.00019452,2]
[360878476,1747095055895,-151.0,0.00019452,2]
[360878477,1747095055904,-400.0,0.00019452,2]
[360878478,1747095055913,-400.0,0.00019452,2]
[360878479,1747095055923,-400.0,0.00019452,2]
[360878480,1747095055932,-400.0,0.00019452,2]
[360878481,1747095055941,-573.54,0.00019452,2]
[360878482,1747095055950,-400.0,0.00019452,2]
[360878483,1747095055959,-400.0,0.00019452,2]
[360878484,1747095055968,-400.0,0.00019452,2]
[360878485,1747095055978,-1440.62,0.00019452,2]
[360878486,1747095055988,-485.74,0.00019452,2]
[360878487,1747095055997,-400.0,0.00019452,2]
[360878488,1747095056007,-277.66774682,0.00019452,2]
[360878489,1747095056016,-1647.1,0.00019452,2]
[360878490,1747095056025,-294.000409,0.00019452,2]
[360878491,1747095056034,-426.16,0.00019452,2]
[360878492,1747095056043,-400.0,0.00019452,2]
[360878493,1747095056053,-400.0,0.00019452,2]
[360878494,1747095056061,-400.0,0.00019452,2]
[360878495,1747095056071,-400.0,0.00019452,2]
[360878496,1747095056081,-400.0,0.00019452,2]
[360878497,1747095056090,-400.0,0.00019452,2]
[360878498,1747095056100,-400.0,0.00019452,2]
[360878499,1747095056112,-400.0,0.00019452,2]
[360878500,1747095056122,-400.0,0.00019452,2]
[360878501,1747095056131,-504.09573077,0.00019452,2]
[360878502,1747095056140,-400.0,0.00019452,2]
[360878503,1747095056149,-400.0,0.00019452,2]
[360878504,1747095056159,-400.0,0.00019452,2]
[360878505,1747095056172,-400.0,0.00019452,2]
[360878506,1747095056181,-400.0,0.00019452,2]
[360878507,1747095056190,-400.0,0.00019452,2]
[360878508,1747095056199,-400.0,0.00019452,2]
[360878509,1747095056210,-400.0,0.00019452,2]
[360878510,1747095056219,-151.0,0.00019452,2]
[360878511,1747095056229,-151.0,0.00019452,2]
[360878512,1747095056240,-151.0,0.00019452,2]
[360878513,1747095056250,-400.0,0.00019452,2]
[360878514,1747095056259,-151.0,0.00019452,2]
[360878515,1747095056269,-151.0,0.00019452,2]
[360878516,1747095056279,-151.0,0.00019452,2]
[360878517,1747095056288,-151.0,0.00019452,2]
[360878518,1747095056297,-151.0,0.00019452,2]
[360878519,1747095056306,-400.0,0.00019452,2]
[360878520,1747095056316,-400.0,0.00019452,2]
[360878521,1747095056326,-400.0,0.00019452,2]
[360878522,1747095056335,-680.2,0.00019452,2]
[360878523,1747095056345,-400.0,0.00019452,2]
[360878524,1747095056354,-151.0,0.00019452,2]
[360878525,1747095056367,-151.0,0.00019452,2]
[360878526,1747095056376,-151.0,0.00019452,2]
[360878527,1747095056386,-151.0,0.00019452,2]
[360878528,1747095056395,-400.0,0.00019452,2]
[360878529,1747095056404,-151.0,0.00019452,2]
[360878530,1747095056414,-151.0,0.00019452,2]
[360878531,1747095056424,-151.0,0.00019452,2]
[360878532,1747095056433,-1726.55,0.00019452,2]
[360878533,1747095056443,-151.0,0.00019452,2]
[360878534,1747095056452,-400.0,0.00019452,2]
[360878535,1747095056462,-400.0,0.00019452,2]
[360878536,1747095056472,-400.0,0.00019452,2]
[360878537,1747095056481,-151.0,0.00019452,2]
[360878538,1747095056491,-151.0,0.00019452,2]
[360878539,1747095056500,-151.0,0.00019452,2]
[360878540,1747095056510,-151.0,0.00019452,2]
[360878541,1747095056519,-2302.73,0.00019452,2]
[360878542,1747095056529,-151.0,0.00019452,2]
[360878543,1747095056538,-400.0,0.00019452,2]
[360878544,1747095056547,-151.0,0.00019452,2]
[360878545,1747095056556,-151.0,0.00019452,2]
[360878546,1747095056565,-151.0,0.00019452,2]
[360878547,1747095056575,-400.0,0.00019452,2]
[360878548,1747095056584,-400.0,0.00019452,2]
[360878549,1747095056593,-400.0,0.00019452,2]
[360878550,1747095056602,-400.0,0.00019452,2]
[360878551,1747095056614,-400.0,0.00019452,2]
[360878552,1747095056624,-400.0,0.00019452,2]
[360878553,1747095056633,-400.0,0.00019452,2]
[360878554,1747095056643,-488.05,0.00019452,2]
[360878555,1747095056652,-400.0,0.00019452,2]
[360878556,1747095056662,-400.0,0.00019452,2]
[360878557,1747095056671,-469.9863324,0.00019452,2]
[360878558,1747095056680,-614.08,0.00019452,2]
[360878559,1747095056690,-758.97,0.00019452,2]
[360878560,1747095056700,-400.0,0.00019452,2]
[360878561,1747095056709,-151.0,0.00019452,2]
[360878562,1747095056718,-151.0,0.00019452,2]
[360878563,1747095056727,-151.0,0.00019452,2]
[360878564,1747095056737,-228.241496,0.00019452,2]
[360878565,1747095056746,-766.96,0.00019452,2]
[360878566,1747095056755,-400.0,0.00019452,2]
[360878567,1747095056764,-724.92,0.00019452,2]
[360878568,1747095056773,-400.0,0.00019452,2]
[360878569,1747095056782,-531.19,0.00019452,2]
[360878570,1747095056791,-912.67,0.00019452,2]
[360878571,1747095056800,-400.0,0.00019452,2]
[360878572,1747095056810,-1026.17,0.00019452,2]
[360878573,1747095056819,-400.0,0.00019452,2]
[360878574,1747095056828,-400.0,0.00019452,2]
[360878575,1747095056837,-400.0,0.00019452,2]
[360878576,1747095056847,-491.745875,0.00019452,2]
[360878577,1747095056856,-400.0,0.00019452,2]
[360878578,1747095056867,-400.0,0.00019452,2]
[360878579,1747095056876,-491.745875,0.00019452,2]
[360878580,1747095056886,-400.0,0.00019452,2]
[360878581,1747095056896,-491.745875,0.00019452,2]
[360878582,1747095056905,-491.745875,0.00019452,2]
[360878583,1747095056915,-491.745875,0.00019452,2]
[360878584,1747095056925,-441.75,0.00019452,2]
[360878585,1747095056935,-400.0,0.00019452,2]
[360878586,1747095056944,-491.745875,0.00019452,2]
[360878587,1747095056954,-491.745875,0.00019452,2]
[360878588,1747095056963,-491.745875,0.00019452,2]
[360878589,1747095056972,-491.745875,0.00019452,2]
[360878590,1747095056982,-491.745875,0.00019452,2]
[360878591,1747095056992,-400.0,0.00019452,2]
[360878592,1747095057001,-400.0,0.00019452,2]
[360878593,1747095057010,-569.46,0.00019452,2]
[360878594,1747095057019,-418.23,0.00019452,2]
[360878595,1747095057028,-400.0,0.00019452,2]
[360878596,1747095057037,-400.0,0.00019452,2]
[360878597,1747095057046,-400.0,0.00019452,2]
[360878598,1747095057055,-400.0,0.00019452,2]
[360878599,1747095057064,-400.0,0.00019452,2]
[360878600,1747095057073,-778.3,0.00019452,2]
[360878601,1747095057082,-400.0,0.00019452,2]
[360878602,1747095057091,-400.0,0.00019452,2]
[360878603,1747095057101,-400.0,0.00019452,2]
[360878604,1747095057111,-400.0,0.00019452,2]
[360878605,1747095057121,-400.0,0.00019452,2]
[360878606,1747095057130,-400.0,0.00019452,2]
[360878607,1747095057140,-400.0,0.00019452,2]
[360878608,1747095057148,-151.0,0.00019452,2]
[360878609,1747095057157,-1114.53,0.00019452,2]
[360878610,1747095057169,-400.0,0.00019452,2]
[360878611,1747095057179,-151.0,0.00019452,2]
[360878612,1747095057362,-151.0,0.00019452,2]
[360878613,1747095057372,-400.0,0.00019452,2]
[360878614,1747095057381,-151.0,0.00019452,2]
[360878615,1747095057391,-151.0,0.00019452,2]
[360878616,1747095057401,-225.07283743,0.00019452,2]
[360878617,1747095057410,-400.0,0.00019452,2]
[360878618,1747095057419,-400.0,0.00019452,2]
[360878619,1747095057428,-400.0,0.00019452,2]
[360878620,1747095057440,-208.113875,0.00019452,2]
[360878621,1747095057450,-400.0,0.00019452,2]
[360878622,1747095057459,-539.231565,0.00019452,2]
[360878623,1747095057467,-539.231565,0.00019452,2]
[360878624,1747095057476,-400.0,0.00019452,2]
[360878625,1747095057484,-539.231565,0.00019452,2]
[360878626,1747095057493,-400.0,0.00019452,2]
[360878627,1747095057501,-539.231565,0.00019452,2]
[360878628,1747095057509,-539.231565,0.00019452,2]